fUST/lending_fUST_20240214
["ID","MTS","AMOUNT","RATE_DAILY","PERIOD"]
[313952891,1707854960148,-154.81422293,0.00025315,2]
[313952892,1707854960171,-224.404934,0.00026115,2]
[313952893,1707854960192,-7875.046286,0.00027337,2]
[313952894,1707854960214,-200.0,0.00027845,15]
[313952895,1707854960236,-790.35892036,0.00027962,2]
[313952896,1707854960256,-186.09372379,0.000289,2]
[313952897,1707854960296,-3343.77753188,0.0003,2]
[313952898,1707854960324,-9762.45268381,0.0003,10]
[313952899,1707854960346,-267.0,0.0003,2]
[313952900,1707854960367,-13632.93415836,0.0003,4]
[313953067,1707855041185,-275.15110533,0.00024285,3]
[313953068,1707855041196,-4353.32935275,0.00025315,2]
[313953071,1707855041207,-6559.56772871,0.0003,4]
[313953073,1707855041217,-3343.77753188,0.0003,2]
[313953075,1707855041226,-244.93876299,0.0003,4]
[313953076,1707855041236,-163.53811563,0.0003,2]
[313953078,1707855041247,-154.94425386,0.00031691,7]
[313953081,1707855041257,-20860.11740249,0.000318,45]
[313953082,1707855041267,-3461.96347106,0.00032,15]
[313953084,1707855041276,-200.0,0.00032999,15]
[313953087,1707855041285,-484.78188868,0.00033062,4]
[313953089,1707855041294,-1651.68525253,0.00033063,10]
[313953090,1707855041303,-159.52100936,0.00033274,7]
[313953092,1707855041313,-154.81422293,0.00033595,5]
[313953093,1707855041322,-3407.48103836,0.000345,30]
[313953094,1707855041331,-1533.16044773,0.00035,4]
[313953096,1707855041340,-295.26714863,0.00035184,2]
[313953098,1707855041349,-151.0,0.0003589,2]
[313953099,1707855041358,-151.0,0.00036,2]
[313953101,1707855041368,-254.37019119,0.0003624,2]
[313953103,1707855041377,-280.0,0.00036299,15]
[313953104,1707855041386,-211.0,0.00036909,2]
[313953106,1707855041395,-372.85209685,0.00036909,4]
[313953108,1707855041404,-15127.94684031,0.00037,8]
[313953109,1707855041413,-162.7684844,0.00037182,2]
[313953111,1707855041423,-162.76848437,0.00037194,2]
[313953113,1707855041432,-162.76848437,0.00037206,2]
[313953114,1707855041441,-162.76848437,0.00037218,2]
[313953116,1707855041450,-162.76848437,0.0003723,2]
[313953118,1707855041459,-2172.78,0.00037272,3]
[313953120,1707855041468,-1810.65,0.00037272,3]
[313953122,1707855041477,-1276.2070171,0.00037273,2]
[313953123,1707855041486,-158.34229467,0.00037279,4]
[313953125,1707855041496,-500.0,0.00037279,14]
[313953127,1707855041505,-500.0,0.00037279,14]
[313953129,1707855041514,-500.0,0.00037279,14]
[313953130,1707855041524,-500.0,0.00037279,14]
[313953132,1707855041640,-500.0,0.00037279,14]
[313953134,1707855041652,-500.0,0.00037279,14]
[313953136,1707855041662,-500.0,0.0003728,2]
[313953137,1707855041671,-500.0,0.0003728,2]
[313953138,1707855041681,-1775.969895,0.0003728,9]
[313953140,1707855041690,-174.58576829,0.0003728,4]
[313953141,1707855041699,-154.79876161,0.00037282,4]
[313953142,1707855041708,-1202.57082301,0.00037282,4]
[313953143,1707855041717,-5996.20819891,0.00037282,4]
[313953144,1707855041726,-6304.53229004,0.00037282,4]
[313953145,1707855041736,-523.3915647,0.00037282,4]
[313953146,1707855041747,-681.3383372,0.00037282,4]
[313953147,1707855041756,-174.59724927,0.00037282,4]
[313953148,1707855041765,-324.25284351,0.00037282,4]
[313953149,1707855041775,-179.03758236,0.00037282,4]
[313953150,1707855041784,-580.99546403,0.00037282,4]
[313953151,1707855041793,-1947.3753187,0.00037282,4]
[313953152,1707855041802,-1311.85486598,0.00037282,4]
[313953153,1707855041812,-157.05883364,0.00037282,4]
[313953154,1707855041822,-1633.25283302,0.00037282,2]
[313953155,1707855041831,-864.0,0.00037282,2]
[313953156,1707855041840,-864.0,0.00037282,2]
[313953157,1707855041850,-2092.20651111,0.00037284,4]
[313953158,1707855041859,-512.3152728,0.00037284,30]
[313953159,1707855041868,-300.0,0.00037284,4]
[313953160,1707855041878,-178.77097385,0.00037284,4]
[313953161,1707855041887,-3344.23902158,0.00037284,4]
[313953162,1707855041896,-1000.0,0.000373,9]
[313953163,1707855041905,-500.0,0.00037322,2]
[313953164,1707855041914,-500.0,0.00037322,2]
[313953165,1707855041924,-513.95204902,0.00037322,14]
[313953166,1707855041933,-500.0,0.00037322,14]
[313953167,1707855041942,-500.0,0.00037322,14]
[313953168,1707855041951,-500.0,0.00037322,14]
[313953169,1707855041962,-554.33338436,0.00037322,14]
[313953170,1707855041971,-500.0,0.00037322,14]
[313953171,1707855041981,-500.0,0.00037322,14]
[313953172,1707855041990,-500.0,0.00037329,14]
[313953173,1707855041999,-500.0,0.00037329,14]
[313953174,1707855042008,-500.0,0.00037329,14]
[313953175,1707855042018,-500.0,0.00037329,14]
[313953176,1707855042028,-500.0,0.00037329,14]
[313953177,1707855042039,-500.0,0.00037329,14]
[313953178,1707855042049,-394.76,0.00037329,14]
[313953179,1707855042058,-500.0,0.00037329,14]
[313953180,1707855042067,-500.0,0.00037329,14]
[313953181,1707855042077,-500.0,0.00037329,14]
[313953182,1707855042085,-500.0,0.00037329,14]
[313953183,1707855042095,-500.0,0.00037329,14]
[313953184,1707855042104,-500.0,0.00037329,14]
[313953185,1707855042113,-500.0,0.00037329,14]
[313953186,1707855042123,-500.0,0.00037329,14]
[313953187,1707855042133,-500.0,0.00037329,14]
[313953188,1707855042141,-500.0,0.00037329,14]
[313953189,1707855042150,-500.0,0.00037329,14]
[313953190,1707855042163,-500.0,0.00037329,14]
[313953191,1707855042172,-500.0,0.00037329,14]
[313953192,1707855042181,-290.0002,0.00037329,14]
[313953193,1707855042191,-500.0,0.00037329,14]
[313953194,1707855042200,-500.0,0.00037329,14]
[313953195,1707855042210,-500.0,0.00037329,14]
[313953196,1707855042219,-500.0,0.00037329,14]
[313953197,1707855042229,-500.0,0.00037329,14]
[313953198,1707855042239,-258.0,0.00037329,14]
[313953199,1707855042250,-500.0,0.00037329,14]
[313953200,1707855042260,-500.0,0.00037329,14]
[313953201,1707855042269,-500.0,0.00037329,14]
[313953202,1707855042279,-500.0,0.00037329,14]
[313953203,1707855042288,-263.6,0.00037329,14]
[313953204,1707855042297,-500.0,0.00037329,14]
[313953205,1707855042306,-500.0,0.00037329,14]
[313953206,1707855042318,-500.0,0.00037329,14]
[313953207,1707855042327,-500.0,0.00037329,14]
[313953208,1707855042337,-500.0,0.00037329,14]
[313953209,1707855042347,-500.0,0.00037329,14]
[313953210,1707855042358,-689.21,0.00037329,14]
[313953211,1707855042368,-689.21,0.00037329,14]
[313953212,1707855042378,-689.21,0.00037329,14]
[313953213,1707855042387,-689.21,0.00037329,14]
[313953214,1707855042396,-689.21,0.00037329,14]
[313953215,1707855042405,-689.21,0.00037329,14]
[313953216,1707855042414,-689.21,0.00037329,14]
[313953217,1707855042424,-689.21,0.00037329,14]
[313953218,1707855042433,-689.21,0.00037329,14]
[313953219,1707855042442,-689.21,0.00037329,14]
[313953220,1707855042451,-689.21,0.00037329,14]
[313953221,1707855042461,-689.21,0.00037329,14]
[313953222,1707855042470,-500.0,0.00037329,14]
[313953223,1707855042479,-689.21,0.00037329,14]
[313953224,1707855042488,-500.0,0.00037329,14]
[313953225,1707855042498,-689.21,0.00037329,14]
[313953226,1707855042507,-689.21,0.00037329,14]
[313953227,1707855042517,-689.21,0.00037329,14]
[313953228,1707855042526,-689.21,0.00037329,14]
[313953229,1707855042536,-689.21,0.00037329,14]
[313953230,1707855042544,-689.21,0.00037329,14]
[313953231,1707855042554,-689.21,0.00037329,14]
[313953232,1707855042564,-689.21,0.00037329,14]
[313953233,1707855042574,-689.21,0.00037329,14]
[313953234,1707855042584,-689.21,0.00037329,14]
[313953235,1707855042593,-689.33,0.00037329,14]
[313953236,1707855042602,-500.0,0.00037329,14]
[313953237,1707855042612,-500.0,0.00037329,14]
[313953238,1707855042621,-500.0,0.00037329,14]
[313953239,1707855042631,-500.0,0.00037329,14]
[313953240,1707855042640,-500.0,0.00037329,14]
[313953241,1707855042649,-500.0,0.00037329,14]
[313953242,1707855042658,-500.0,0.00037329,14]
[313953243,1707855042667,-433.30936262,0.00037329,14]
[313953244,1707855042677,-500.0,0.00037329,14]
[313953245,1707855042686,-502.29,0.00037329,14]
[313953246,1707855042695,-500.0,0.00037329,14]
[313953247,1707855042705,-502.29,0.00037329,14]
[313953248,1707855042714,-502.29,0.00037329,14]
[313953249,1707855042723,-502.29,0.00037329,14]
[313953250,1707855042732,-502.29,0.00037329,14]
[313953251,1707855042741,-502.29,0.00037329,14]
[313953252,1707855042750,-502.29,0.00037329,14]
[313953253,1707855042759,-502.29,0.00037329,14]
[313953254,1707855042768,-502.29,0.00037329,14]
[313953255,1707855042778,-502.29,0.00037329,14]
[313953256,1707855042790,-502.29,0.00037329,14]
[313953257,1707855042802,-502.29,0.00037329,14]
[313953258,1707855042813,-502.29,0.00037329,14]
[313953259,1707855042825,-502.29,0.00037329,14]
[313953260,1707855042835,-502.29,0.00037329,14]
[313953261,1707855042847,-502.29,0.00037329,14]
[313953262,1707855042858,-502.29,0.00037329,14]
[313953263,1707855042867,-502.29,0.00037329,14]
[313953264,1707855042877,-502.29,0.00037329,14]
[313953265,1707855042886,-502.29,0.00037329,14]
[313953266,1707855042897,-502.29,0.00037329,14]
[313953267,1707855042909,-502.29,0.00037329,14]
[313953268,1707855042919,-502.29,0.00037329,14]
[313953269,1707855042931,-502.29,0.00037329,14]
[313953270,1707855042942,-500.0,0.00037329,14]
[313953271,1707855042953,-500.0,0.00037329,14]
[313953272,1707855042964,-500.0,0.00037329,14]
[313953274,1707855042975,-500.0,0.00037329,14]
[313953277,1707855042985,-500.0,0.00037329,14]
[313953279,1707855042997,-350.64,0.00037329,14]
[313953281,1707855043008,-500.0,0.00037329,14]
[313953283,1707855043019,-500.0,0.00037329,14]
[313953285,1707855043029,-500.0,0.00037329,14]
[313953288,1707855043039,-500.0,0.00037329,14]
[313953290,1707855043049,-500.0,0.00037329,14]
[313953293,1707855043059,-500.0,0.00037329,14]
[313953296,1707855043067,-500.0,0.00037329,14]
[313953301,1707855043077,-598.98,0.00037329,14]
[313953304,1707855043099,-500.0,0.00037329,14]
[313953306,1707855043111,-500.0,0.00037329,14]
[313953310,1707855043124,-500.0,0.00037329,14]
[313953313,1707855043137,-500.0,0.00037329,14]
[313953315,1707855043148,-500.0,0.00037329,14]
[313953319,1707855043160,-7670.99281195,0.0003733,30]
[313953320,1707855043182,-4325.54964058,0.0003733,30]
[313953323,1707855043226,-11656.42149651,0.0003733,30]
[313953324,1707855043241,-47483.56649418,0.0003733,30]
[313953422,1707855046612,-500.0,0.00035,2]
[313953862,1707856036129,-360.81623429,0.00024345,2]
[313953863,1707856036153,-318.53010921,0.00024346,3]
[313953864,1707856036176,-7089.53824202,0.00025315,2]
[313954299,1707856166125,-26760.77149656,0.00025315,2]
[313954300,1707856166148,-2536.39172768,0.00025315,2]
[313954301,1707856166168,-154.81422293,0.00025315,2]
[313954302,1707856166187,-277.2955554,0.00025315,2]
[313954303,1707856166207,-154.81422293,0.00025315,2]
[313954304,1707856166228,-200.0,0.00027845,15]
[313954305,1707856166249,-3343.77753188,0.0003,2]
[313954306,1707856166270,-195.0,0.0003,2]
[313954307,1707856166291,-280.0,0.0003063,15]
[313954308,1707856166312,-1653.5647769,0.00032746,2]
[313954309,1707856166332,-235.875086,0.00033024,2]
[313954310,1707856166354,-5000.0,0.00033325,7]
[313954311,1707856166377,-5000.0,0.00033325,7]
[313954312,1707856166401,-154.81422293,0.00033597,5]
[313954313,1707856166424,-307.0,0.00033693,15]
[313954314,1707856166448,-1024.7025,0.00033746,7]
[313954315,1707856166473,-168.4761491,0.000343,2]
[313954316,1707856166497,-484.78188868,0.00034989,4]
[313954317,1707856166519,-1276.2070171,0.0003499,2]
[313954318,1707856166543,-592.91812692,0.00035089,2]
[313954319,1707856166565,-240.24422024,0.0003509,4]
[313954320,1707856166587,-2310.59,0.00035095,3]
[313954321,1707856166607,-1925.49,0.00035095,3]
[313954322,1707856166628,-1604.58,0.00035095,3]
[313954323,1707856166651,-12179.2508209,0.00035105,7]
[313954497,1707856232658,-215.51501115,0.00025315,2]
[313954498,1707856232667,-182.68816674,0.00025315,2]
[313954500,1707856232677,-182.3152882,0.00032458,2]
[313954502,1707856232686,-24836.48818022,0.00035105,7]
[313954506,1707856232731,-804.54752522,0.00035105,7]
[313954535,1707856238735,-12179.71347366,0.00035105,7]
[313954536,1707856238745,-483.15406189,0.00035105,2]
[313954537,1707856238755,-150.67095252,0.0003513,2]
[313954538,1707856238764,-481.51352397,0.0003523,2]
[313954539,1707856238774,-786.0289051,0.00035969,2]
[313954540,1707856238783,-3332.49904288,0.00036956,4]
[313954541,1707856238792,-18755.07522011,0.00036956,4]
[313954542,1707856238802,-2593.4216813,0.0003699,5]
[313954543,1707856238811,-150.0,0.000373,9]
[313954544,1707856238820,-773.81,0.00037319,3]
[313954545,1707856238831,-773.81,0.0003732,3]
[313954546,1707856238841,-500.0,0.00037329,14]
[313954547,1707856238851,-597.91685762,0.00037329,14]
[313954548,1707856238860,-500.0,0.00037329,14]
[313954549,1707856238869,-500.0,0.00037329,14]
[313954550,1707856238879,-500.0,0.00037329,14]
[313954552,1707856238888,-500.0,0.00037329,14]
[313954553,1707856238897,-500.0,0.00037329,14]
[313954554,1707856238906,-500.0,0.00037329,14]
[313954555,1707856238916,-500.0,0.00037329,14]
[313954556,1707856238925,-437.90546181,0.00037329,14]
[313954557,1707856238935,-500.0,0.00037329,14]
[313954558,1707856238945,-500.0,0.00037329,14]
[313954559,1707856238954,-500.0,0.00037329,14]
[313954560,1707856238963,-500.0,0.00037329,14]
[313954561,1707856238973,-417.25,0.00037329,14]
[313954562,1707856238982,-500.0,0.00037329,14]
[313954563,1707856238991,-500.0,0.00037329,14]
[313954564,1707856239001,-500.0,0.00037329,14]
[313954565,1707856239011,-500.0,0.00037329,14]
[313954566,1707856239021,-500.0,0.00037329,14]
[313954567,1707856239031,-500.0,0.00037329,14]
[313954568,1707856239041,-500.0,0.00037329,14]
[313954569,1707856239050,-500.0,0.00037329,14]
[313954570,1707856239059,-245.5743169,0.00037329,14]
[313954571,1707856239069,-500.0,0.00037329,14]
[313954572,1707856239079,-500.0,0.00037329,14]
[313954573,1707856239088,-500.0,0.00037329,14]
[313954574,1707856239097,-500.0,0.00037329,14]
[313954575,1707856239108,-500.0,0.00037329,14]
[313954576,1707856239117,-500.0,0.00037329,14]
[313954577,1707856239126,-500.0,0.00037329,14]
[313954578,1707856239136,-500.0,0.00037329,14]
[313954579,1707856239145,-500.0,0.00037329,14]
[313954580,1707856239154,-690.64,0.00037329,14]
[313954581,1707856239162,-690.64,0.00037329,14]
[313954582,1707856239171,-690.64,0.00037329,14]
[313954583,1707856239180,-690.64,0.00037329,14]
[313954584,1707856239189,-690.64,0.00037329,14]
[313954585,1707856239198,-500.0,0.00037329,14]
[313954586,1707856239207,-500.0,0.00037329,14]
[313954587,1707856239216,-500.0,0.00037329,14]
[313954588,1707856239225,-500.0,0.00037329,14]
[313954589,1707856239235,-500.0,0.00037329,14]
[313954590,1707856239243,-500.0,0.00037329,14]
[313954591,1707856239253,-500.0,0.00037329,14]
[313954592,1707856239262,-500.0,0.00037329,14]
[313954593,1707856239271,-500.0,0.00037329,14]
[313954594,1707856239280,-500.0,0.00037329,14]
[313954595,1707856239289,-500.0,0.00037329,14]
[313954596,1707856239298,-500.0,0.00037329,14]
[313954597,1707856239307,-500.0,0.00037329,14]
[313954598,1707856239316,-314.9688596,0.0003733,4]
[313954599,1707856239325,-7368.04516711,0.0003733,2]
[313954600,1707856239335,-2817.74923726,0.0003733,4]
[313954601,1707856239344,-324.25284351,0.0003733,4]
[313954602,1707856239353,-6304.53229004,0.0003733,4]
[313954603,1707856239362,-154.81422293,0.0003733,4]
[313954604,1707856239371,-1044.86734215,0.0003733,4]
[313954605,1707856239380,-685.12760124,0.0003733,4]
[313954606,1707856239389,-155.07747611,0.0003733,4]
[313954607,1707856239398,-461.679376,0.0003733,7]
[313954608,1707856239407,-1000.0,0.0003733,10]
[313954609,1707856239416,-155.11684864,0.0003733,2]
[313954610,1707856239425,-300.0,0.0003733,4]
[313954611,1707856239435,-2092.20651111,0.0003733,4]
[313954612,1707856239444,-984.66594638,0.0003733,10]
[313954613,1707856239453,-1813.40945028,0.0003733,7]
[313954614,1707856239463,-258.81548242,0.0003733,7]
[313954615,1707856239472,-500.0,0.0003733,14]
[313954616,1707856239480,-500.0,0.0003733,14]
[313954617,1707856239490,-500.0,0.0003733,14]
[313954618,1707856239503,-500.0,0.0003733,14]
[313954619,1707856239512,-500.0,0.0003733,14]
[313954620,1707856239521,-500.0,0.0003733,14]
[313954621,1707856239530,-500.0,0.0003733,14]
[313954622,1707856239540,-500.0,0.0003733,14]
[313954623,1707856239550,-500.0,0.0003733,14]
[313954624,1707856239559,-500.0,0.0003733,14]
[313954625,1707856239568,-1960.45265196,0.0003733,7]
[313954626,1707856239578,-500.0,0.0003733,14]
[313954627,1707856239588,-500.0,0.0003733,14]
[313954628,1707856239597,-500.0,0.0003733,14]
[313954629,1707856239607,-500.0,0.0003733,14]
[313954630,1707856239616,-500.0,0.0003733,14]
[313954631,1707856239625,-500.0,0.0003733,14]
[313954632,1707856239634,-500.0,0.0003733,14]
[313954633,1707856239643,-500.0,0.0003733,14]
[313954634,1707856239652,-500.0,0.0003733,14]
[313954635,1707856239661,-500.0,0.0003733,14]
[313954636,1707856239670,-500.0,0.0003733,14]
[313954637,1707856239679,-500.0,0.0003733,14]
[313954638,1707856239688,-500.0,0.0003733,14]
[313954639,1707856239696,-500.0,0.0003733,14]
[313954640,1707856239706,-500.0,0.0003733,14]
[313954641,1707856239715,-250.0,0.0003733,2]
[313954642,1707856239725,-500.0,0.00037331,14]
[313954643,1707856239735,-500.0,0.00037331,14]
[313954644,1707856239745,-500.0,0.00037331,14]
[313954645,1707856239754,-235.05560756,0.00037331,14]
[313954646,1707856239764,-500.0,0.00037331,14]
[313954647,1707856239774,-500.0,0.00037331,14]
[313954648,1707856239785,-500.0,0.00037331,14]
[313954649,1707856239795,-208.21,0.00037353,35]
[313954650,1707856239805,-150.5,0.00037363,35]
[313954651,1707856239815,-150.5,0.00037373,35]
[313954652,1707856239826,-500.0,0.00037382,2]
[313954653,1707856239836,-500.0,0.00037382,2]
[313954654,1707856239850,-500.0,0.00037382,2]
[313954655,1707856239861,-638.78,0.00037382,14]
[313954656,1707856239875,-612.47,0.00037382,14]
[313954657,1707856239885,-500.0,0.00037382,2]
[313954658,1707856239895,-500.0,0.00037382,2]
[313954659,1707856239905,-500.0,0.00037382,2]
[313954660,1707856239915,-690.64,0.00037382,14]
[313954661,1707856239925,-690.64,0.00037382,14]
[313954662,1707856239935,-690.64,0.00037382,14]
[313954663,1707856239945,-690.64,0.00037382,14]
[313954664,1707856239955,-690.64,0.00037382,14]
[313954665,1707856239965,-690.64,0.00037382,14]
[313954666,1707856239974,-690.64,0.00037382,14]
[313954667,1707856239984,-690.64,0.00037382,14]
[313954668,1707856239995,-690.64,0.00037382,14]
[313954669,1707856240005,-690.64,0.00037382,14]
[313954670,1707856240015,-690.64,0.00037382,14]
[313954671,1707856240024,-690.64,0.00037382,14]
[313954672,1707856240034,-690.64,0.00037382,14]
[313954673,1707856240043,-690.64,0.00037382,14]
[313954674,1707856240052,-690.64,0.00037382,14]
[313954675,1707856240062,-690.64,0.00037382,14]
[313954676,1707856240072,-690.64,0.00037382,14]
[313954677,1707856240082,-690.64,0.00037382,14]
[313954678,1707856240098,-690.85,0.00037382,14]
[313954679,1707856240107,-500.0,0.00037382,14]
[313954680,1707856240117,-500.0,0.00037382,14]
[313954681,1707856240127,-419.65,0.00037382,14]
[313954682,1707856240136,-500.0,0.00037382,14]
[313954683,1707856240145,-500.0,0.00037382,14]
[313954684,1707856240154,-500.0,0.00037382,14]
[313954685,1707856240164,-261.11,0.00037382,14]
[313954686,1707856240173,-154.86062544,0.00037382,4]
[313954687,1707856240182,-209.08471313,0.00037382,4]
[313954688,1707856240191,-232.693316,0.00037384,2]
[313954689,1707856240199,-500.0,0.00037384,14]
[313954690,1707856240209,-500.0,0.00037384,14]
[313954691,1707856240217,-500.0,0.00037384,14]
[313954692,1707856240226,-500.0,0.00037384,14]
[313954693,1707856240236,-167.79,0.00037384,14]
[313954694,1707856240245,-500.0,0.00037384,14]
[313954695,1707856240255,-500.0,0.00037384,14]
[313954696,1707856240265,-500.0,0.00037384,14]
[313954697,1707856240274,-500.0,0.00037384,14]
[313954698,1707856240283,-500.0,0.00037384,14]
[313954699,1707856240292,-500.0,0.00037384,14]
[313954700,1707856240302,-500.0,0.00037384,14]
[313954701,1707856240311,-500.0,0.00037384,14]
[313954702,1707856240320,-500.0,0.00037384,14]
[313954703,1707856240329,-500.0,0.00037384,14]
[313954704,1707856240341,-500.0,0.00037384,14]
[313954705,1707856240351,-500.0,0.00037384,14]
[313954706,1707856240360,-159.56,0.00037384,14]
[313954707,1707856240369,-592.91812692,0.00037384,2]
[313954708,1707856240379,-484.78188868,0.00037384,4]
[313954709,1707856240388,-508.38017005,0.00037385,15]
[313954710,1707856240397,-300.29602068,0.00037385,15]
[313954711,1707856240407,-227.94742468,0.00037385,15]
[313954712,1707856240416,-236.42788801,0.00037385,15]
[313954713,1707856240425,-27473.49545615,0.00037386,30]
[313954714,1707856240438,-36126.31525166,0.00037386,30]
[313954715,1707856240450,-4078.57805765,0.00037386,30]
[313954716,1707856240462,-10957.19921104,0.00037386,30]
[313954734,1707856241929,-9052.62041237,0.00037386,30]
[313954735,1707856241986,-12042.12703229,0.00037386,30]
[313954736,1707856241999,-10385.290486,0.00037386,30]
[313954775,1707856243787,-509.95758116,0.00037386,30]
[313954776,1707856243802,-717.97801441,0.00037386,30]
[313955071,1707857435869,-360.81623429,0.00024424,2]
[313955073,1707857435881,-163.55377005,0.00024425,2]
[313955075,1707857435891,-151.68100438,0.00024525,3]
[313955077,1707857435902,-12628.50706185,0.00025215,2]
[313955079,1707857435914,-8462.57743465,0.00025698,2]
[313955081,1707857435923,-2643.24138539,0.00025698,2]
[313955083,1707857435933,-302.71782887,0.00026682,2]
[313955222,1707857437988,-4885.36552173,0.00026682,2]
[313955235,1707857438097,-3181.87849631,0.00026682,2]
[313955241,1707857438147,-652.62752531,0.00026682,2]
[313955243,1707857438160,-5253.34943818,0.00026682,2]
[313955549,1707857441109,-10624.0611896,0.00026682,2]
[313955550,1707857441119,-200.0,0.00027735,15]
[313955551,1707857441128,-18557.6253368,0.00029358,2]
[313955552,1707857441137,-153.39601059,0.00030458,5]
[313955554,1707857441146,-235.875086,0.00030558,2]
[313955556,1707857441155,-159.767966,0.00031292,2]
[313955558,1707857441164,-163.55377005,0.00035186,2]
[313955560,1707857441173,-801.9997457,0.00035286,2]
[313955562,1707857441182,-585.709386,0.00036121,3]
[313955564,1707857441191,-520.45,0.00036957,3]
[313955566,1707857441200,-500.0,0.00037007,4]
[313955568,1707857441210,-154.81422293,0.00037009,4]
[313955571,1707857441219,-3332.49904288,0.0003701,4]
[313955574,1707857441228,-801.331758,0.000372,30]
[313955576,1707857441237,-155.08364545,0.00037384,4]
[313955578,1707857441247,-154.90705577,0.00037384,4]
[313955580,1707857441257,-5176.96633439,0.00037384,4]
[313955582,1707857441267,-261.94560961,0.00037384,4]
[313955585,1707857441277,-294.63300604,0.00037384,4]
[313955586,1707857441286,-159.35440713,0.00037384,4]
[313955589,1707857441295,-154.90705577,0.00037384,4]
[313955591,1707857441306,-396.79774201,0.00037384,4]
[313955592,1707857441319,-154.90705577,0.00037384,4]
[313955595,1707857441336,-154.90705577,0.00037384,4]
[313955596,1707857441349,-535.60283186,0.00037384,4]
[313955598,1707857441359,-301.5403373,0.00037384,4]
[313955600,1707857441368,-154.9858612,0.00037384,4]
[313955602,1707857441378,-154.90705577,0.00037384,4]
[313955604,1707857441388,-3858.4014668,0.00037384,4]
[313955606,1707857441397,-154.90705577,0.00037384,4]
[313955610,1707857441417,-154.90705577,0.00037384,4]
[313955612,1707857441428,-2720.42581278,0.00037384,120]
[313955614,1707857441437,-297.9827626,0.00037385,2]
[313955616,1707857441446,-14630.59747721,0.00037385,4]
[313955868,1707857443093,-542.61338597,0.00037385,4]
[313955881,1707857443149,-450.10892117,0.00037385,4]
[313956231,1707857446086,-5314.36302216,0.00037385,4]
[313956233,1707857446095,-1328.22198213,0.00037386,10]
[313956235,1707857446105,-1554.76048313,0.00037386,7]
[313956237,1707857446114,-604.46981676,0.00037386,7]
[313956239,1707857446123,-185.04050999,0.00037386,14]
[313956241,1707857446132,-585.95270669,0.00037386,30]
[313956244,1707857446145,-406.00762638,0.00037386,30]
[313956246,1707857446156,-6241.578401,0.00037386,30]
[313956248,1707857446165,-198.73995379,0.00037386,7]
[313956250,1707857446174,-154.79876161,0.00037386,2]
[313956252,1707857446184,-155.82041151,0.00037386,2]
[313956254,1707857446193,-992.47,0.00037392,3]
[313956256,1707857446202,-151.0,0.00037397,2]
[313956258,1707857446212,-183.4562463,0.00037399,10]
[313956260,1707857446222,-154.8915759,0.00037399,4]
[313956262,1707857446231,-500.0,0.000374,14]
[313956264,1707857446241,-500.0,0.000374,14]
[313956266,1707857446251,-500.0,0.000374,14]
[313956268,1707857446261,-500.0,0.000374,14]
[313956270,1707857446270,-436.98032541,0.000374,14]
[313956272,1707857446280,-500.0,0.000374,14]
[313956274,1707857446289,-500.0,0.000374,14]
[313956276,1707857446298,-500.0,0.000374,14]
[313956278,1707857446308,-500.0,0.000374,14]
[313956280,1707857446317,-500.0,0.000374,14]
[313956282,1707857446327,-500.0,0.000374,14]
[313956284,1707857446336,-500.0,0.000374,14]
[313956286,1707857446345,-500.0,0.000374,14]